Cogmind - Beta 10.2 @@@ ROGUE MODE // 2021.05.11 @ 10:54:50 Player: whisper Result: Destroyed by Y-45 Defender with Beam Rifle Performance ------------- Evolutions (0) 0 Regions Visited (2) 400 Robots Destroyed (20) 100 Value Destroyed (305) 305 Prototype IDs (2) 40 Alien Tech Used (0) 0 Bonus (0) 0 TOTAL SCORE: 845 Bonus ------- None Cogmind --------- Core Integrity 0/250 Matter 238/300 Energy 85/125 System Corruption 0% Temperature Cool (106) Movement Treading (160) Location -10/Mines Parts ------- > --- POWER (1) -------- Light Ion Engine > --- PROPULSION (2) --- Light Treads Light Treads > --- UTILITY (2) ------ Large Storage Unit Large Storage Unit > --- WEAPON (2) ------- EM Pulse Gun Light Assault Rifle > --- INVENTORY (16) --- Light Ion Engine Light Treads Light Treads Light Treads Wheel Improved Heat Sink High-capacity Storage Unit High-capacity Matter Pod (200) ECM Suite Light Armor Plating Light Assault Rifle Peak State ------------ > --- POWER ------------ Ion Engine > --- PROPULSION ------- Aluminum Leg Aluminum Leg > --- UTILITY ---------- Medium Storage Unit High-capacity Storage Unit > --- WEAPON ----------- Assault Rifle Assault Rifle > --- INVENTORY -------- Light Ion Engine Light Treads Light Treads Light Treads Wheel Wheel High-capacity Matter Pod EM Pulse Gun Light Assault Rifle Light Assault Rifle [Rating: 8] Favorites ----------- Power Ion Engine Engine Ion Engine Propulsion Aluminum Leg Treads Light Treads Leg Aluminum Leg Utility Large Storage Unit Storage Large Storage Unit Processor Signal Interpreter Weapon Assault Rifle Energy Gun EM Pulse Gun Ballistic Gun Assault Rifle Build | -11 -10 -10 ------- Run | Scr Mat Min Slots Evolved . | . . . Power . | . . . Propulsion . | . . . Utility . | . . . Weapon . | . . . Parts Attached 25 | 6 10 9 Power 3 | 1 . 2 Engine 3 | 1 . 2 Core . | . . . Reactor . | . . . Propulsion 7 | 2 2 3 Treads 2 | . . 2 Leg 5 | 2 2 1 Wheel . | . . . Hover . | . . . Flight . | . . . Utility 9 | 1 8 . Device . | . . . Storage 8 | 1 7 . Processor 1 | . 1 . Hackware . | . . . Protection . | . . . Artifact . | . . . Weapon 6 | 2 . 4 Energy Gun 2 | . . 2 Energy Cannon . | . . . Ballistic Gun 4 | 2 . 2 Ballistic Cannon . | . . . Launcher . | . . . Special Weapon . | . . . Impact Weapon . | . . . Slashing Weapon . | . . . Piercing Weapon . | . . . Special Melee Weapon . | . . . Unidentified Prototypes . | . . . Parts Lost 5 | . . 5 Power . | . . . Propulsion 2 | . . 2 Utility . | . . . Weapon 3 | . . 3 Highest Loss Streak 5 | . . 5 Average Slot Usage (%) 98 | . 98 100 Engine 14 | . 14 14 Leg 27 | . 27 27 Storage 26 | . 26 28 Ballistic Gun 27 | . 28 27 Naked Turns . | . . . Heaviest Build 57 | 13 57 41 Greatest Support 20 | 20 20 20 Greatest Overweight (x) 2 | . 2 2 Average Overweight (x) 1 | . 1 1 Largest Inventory Capacity 18 | 6 18 16 Average Capacity 14 | 5 14 16 Most Carried 16 | 6 16 16 Average Carried 13 | 3 13 15 Final Capacity 16 | 6 16 16 Final Carried 16 | 6 16 11 Class Distribution -------------------- 100% | Mutant Dominant Class ---------------- Mutant | -10/Materials Mutant | -10/Mines Resources | -11 -10 -10 ----------- Run | Scr Mat Min Matter Collected 935 | 218 567 150 Remotely . | . . . Salvage Created 521 | . 374 147 Parts 43 | . 34 9 Haulers Intercepted 2 | . 2 . Recyclers Shooed 3 | . 3 . Parts Field Recycled . | . . . Retrieved Matter . | . . . Parts Self-Destructed . | . . . Prevented . | . . . Kills | -11 -10 -10 ------- Run | Scr Mat Min Combat Hostiles Destroyed 16 | . 11 5 Guns 16 | . 11 5 Classes Destroyed 4 | . 4 . Hauler 2 | . 2 . Watcher 2 | . 2 . Swarmer 12 | . 9 3 Grunt 4 | . 2 2 Best Kill Streak 3 | . 3 2 Combat Bots Only 3 | . 3 2 Max Kills in Single Turn 2 | . 2 1 Gunslinging 1 | . 1 . Exploded . | . . . Melee . | . . . Uniques/NPCs Destroyed . | . . . Combat | -11 -10 -10 -------- Run | Scr Mat Min Damage Taken 1127 | . 368 759 Core 252 | . 48 204 Absorbed by Shields . | . . . Core Remaining (%) 100 | 100 . . Volleys Fired 72 | . 42 30 Largest 2 | . 2 2 Hottest 80 | . 40 80 Shots Fired 142 | . 84 58 Gun 142 | . 84 58 Cannon . | . . . Launcher . | . . . Special . | . . . Kinetic 134 | . 84 50 Thermal . | . . . Explosive . | . . . Electromagnetic 8 | . . 8 Robot Hit Streak 9 | . 9 7 Robot Miss Streak 4 | . 4 3 Penetration Max . | . . . Secondary Targets 3 | . 3 . Max Gunslinging Chain 1 | . 1 . Shots Hit Robots 87 | . 51 36 Core Hits 33 | . 21 12 Critical Hits 1 | . 1 . Critical Kills . | . . . Critical Parts Destroyed 1 | . 1 . Melee Attacks . | . . . Impact . | . . . Slashing . | . . . Piercing . | . . . Sneak Attacks . | . . . Combat Hostiles . | . . . Follow-up Attacks . | . . . Damage Inflicted 972 | . 618 354 Guns 972 | . 618 354 Cannons . | . . . Explosions . | . . . Melee . | . . . Ramming . | . . . Kinetic 906 | . 618 288 Thermal . | . . . Explosive . | . . . Electromagnetic 66 | . . 66 Impact . | . . . Slashing . | . . . Piercing . | . . . Highest Corruption . | . . . Average Corruption . | . . . Corruption Purged . | . . . Overload Shots . | . . . Overflow Damage . | . . . Projectiles . | . . . Explosions . | . . . Melee . | . . . Knockbacks . | . . . Impact . | . . . Kinetic . | . . . Secondary . | . . . Self-Inflicted Damage . | . . . Shots . | . . . Rammed . | . . . Targets Rammed . | . . . Kicked . | . . . Crushed . | . . . Highest Temperature 97 | . . 97 Average Temperature 41 | . . 41 Received Heat Transfer 294 | . 66 228 Siege Activations . | . . . Robots Corrupted . | . . . Combat Hostiles . | . . . Parts Fried . | . . . Impact Corruptions . | . . . Robots Melted . | . . . Combat Hostiles . | . . . Parts Melted . | . . . Heat Transferred . | . . . Parts Sabotaged . | . . . Parts Stolen . | . . . Parts Stripped . | . . . Power Chain Reactions . | . . . Missiles Intercepted . | . . . Alert | -11 -10 -10 ------- Run | Scr Mat Min Peak Influence 197 | . 197 115 Initial 29 | . . 29 Average 71 | . 93 41 Maximum Alert Level . | . . . Low Security (%) 100 | 100 100 100 Level 1 . | . . . Level 2 . | . . . Level 3 . | . . . Level 4 . | . . . Level 5 . | . . . High Security . | . . . Max Security . | . . . Squads Dispatched 2 | . 2 . Investigation 1 | . 1 . Extermination . | . . . Reinforcement 1 | . 1 . Assault . | . . . Garrison . | . . . Intercept . | . . . Construction Impeded . | . . . Haulers Reinforced . | . . . Stealth | -11 -10 -10 --------- Run | Scr Mat Min Distress Signals . | . . . Communications Jammed . | . . . Distress Signals . | . . . Times Spotted 27 | . 18 9 Peak Tracking Total 3 | . 3 3 Tactical Retreats 2 | . 1 1 Traps | -11 -10 -10 ------- Run | Scr Mat Min Traps Triggered 1 | . 1 . Indirectly . | . . . Trap Hack Attempts . | . . . Triggered . | . . . Disarmed . | . . . Reprogrammed . | . . . Reused . | . . . Traps Extracted . | . . . Installed . | . . . Triggered . | . . . Machines | -11 -10 -10 ---------- Run | Scr Mat Min Machines Disabled . | . . . Max in Single Turn . | . . . Machines Sabotaged . | . . . Garrisons Compromised . | . . . Overloaded Fab Kills . | . . . Fab Network Shutdowns . | . . . Hacking | -11 -10 -10 --------- Run | Scr Mat Min Machines Accessed 9 | . 9 . Terminals 8 | . 8 . Fabricators . | . . . Repair Stations 1 | . 1 . Recycling Units . | . . . Scanalyzers . | . . . Garrison Access . | . . . Total Hacks 29 | . 29 . Successful 16 | . 16 . Failed 12 | . 12 . Catastrophic . | . . . Database Lockouts 1 | . 1 . Manual 15 | . 15 . Terminals 26 | . 26 . Fabricators . | . . . Repair Stations 3 | . 3 . Recycling Units . | . . . Scanalyzers . | . . . Garrison Access . | . . . Terminal Hacks 11 | . 11 . Robot Analysis 3 | . 3 . Prototype ID Bank 1 | . 1 . Terminal Index 1 | . 1 . Alert Level 1 | . 1 . Locate Traps 2 | . 2 . Dispatch Records 1 | . 1 . Hauler Manifests 1 | . 1 . Registered Components 1 | . 1 . Fabricator Hacks . | . . . Repair Station Hacks 2 | . 2 . Scan Component 1 | . 1 . Repair 1 | . 1 . Recycling Unit Hacks . | . . . Scanalyzer . | . . . Garrison Access Hacks . | . . . Unauthorized Hacks 3 | . 3 . Terminals 3 | . 3 . Track 1 | . 1 . Botnet 1 | . 1 . Operators 1 | . 1 . Fabricators . | . . . Repair Stations . | . . . Recycling Units . | . . . Scanalyzers . | . . . Garrison Access . | . . . Data Cores Recovered . | . . . Used . | . . . Hacking Detections 9 | . 9 . Full Trace Events 1 | . 1 . Feedback Events . | . . . Feedback Blocked . | . . . Robot Schematics Acquired . | . . . Robots Built . | . . . Matter . | . . . Time . | . . . Total Robot Build Rating . | . . . Part Schematics Acquired . | . . . Parts Built . | . . . Matter . | . . . Time . | . . . Total Part Build Rating . | . . . Parts Repaired 1 | . 1 . Time 13 | . 13 . Parts Recycled . | . . . Recycled Matter . | . . . Retrieved Matter . | . . . Retrieved Components . | . . . Parts Scanalyzed . | . . . Part Schematics Acquired . | . . . Parts Damaged . | . . . Bothacking | -11 -10 -10 ------------ Run | Scr Mat Min Used RIF Installer . | . . . Robots Hacked . | . . . Non-combat . | . . . Combat . | . . . Robot Hacks Applied . | . . . Relay Couplers Released . | . . . Robots Rewired . | . . . Allies Hacked . | . . . Hacks Repelled . | . . . Allies | -11 -10 -10 -------- Run | Scr Mat Min Total Allies . | . . . Largest Group . | . . . Highest-Rated Group . | . . . Highest-Rated Ally . | . . . Total Orders . | . . . Ally Attacks . | . . . Total Damage . | . . . Kills . | . . . Allies Corrupted . | . . . Allies Melted . | . . . Intel | -11 -10 -10 ------- Run | Scr Mat Min Robot Analysis Total 3 | . 3 . Derelict Logs Recovered 1 | . . 1 Drone Launches . | . . . Drone Recoveries . | . . . Exploration | -11 -10 -10 ------------- Run | Scr Mat Min Turns Passed 2202 | 64 1332 806 Spaces Moved 1113 | 45 667 401 Core 6 | 6 . . Treads . | . . . Legs 1107 | 39 667 401 Wheels . | . . . Hover . | . . . Flight . | . . . Fastest Speed 50 | 50 120 150 Average Speed 169 | 110 169 175 Slowest Speed 180 | 120 180 180 Overloaded Moves . | . . . Propulsion Burnouts . | . . . Robots Hopped . | . . . Cave-ins Triggered . | . . . Exploration Rate (%) 59 | 3 99 76 Regions Visited 2 Branch Regions 1 Pre-discovered Areas . | . . . Known Exits Taken . | . . . Unknown Exits Taken 2 | 1 1 . Scrap Searched 1 | . . 1 Spaces Dug . | . . . Terrain Destroyed . | . . . Melee . | . . . Projectile . | . . . AOE . | . . . Terrain Rammed . | . . . Walls Destroyed . | . . . Machines Disabled . | . . . Actions | -11 -10 -10 --------- Run | Scr Mat Min Total 1293 | 56 784 453 Wait 44 | . 37 7 Move 1111 | 44 666 401 Hop . | . . . Pick Up 23 | 6 16 1 Fast Attach 11 | 6 5 . Attach 5 | . . 5 Detach 1 | . 1 . Swap 9 | . 5 4 Drop 17 | . 12 5 Fire 72 | . 42 30 Melee . | . . . Ram . | . . . Kick . | . . . Crush . | . . . Escape Stasis . | . . . Rewire . | . . . Trap . | . . . Miscellaneous . | . . . Route ------- -11/Scrapyard -10/Materials (discovered 4 exits: *Mat x3 / [*Min]) -10/Mines (discovered 2 exits: *Mat x2) History --------- Turn | Location | Event 2 | -11/Scrapyard | Discovered new exit (range 16) 65 | -11/Scrapyard | Entered Materials 316 | -10/Materials | Build established: Mutant 372 | -10/Materials | Discovered new exit (range 3) 625 | -10/Materials | Discovered new exit (range 4) 843 | -10/Materials | Repaired Aluminum Leg 1145 | -10/Materials | Discovered new exit (range 16) 1219 | -10/Materials | Identified exit to Materials 1372 | -10/Materials | Discovered new exit (range 12) 1379 | -10/Materials | Central database locked down 1397 | -10/Materials | Entered Mines 1419 | -10/Mines | Discovered exit to Materials (range 6) 1748 | -10/Mines | Learned Materials terminal intel 1797 | -10/Mines | Discovered exit to Materials (range 8) 2088 | -10/Mines | Core integrity fell below 50% 2196 | -10/Mines | Core integrity fell below 20% 2203 | -10/Mines | Destroyed by Y-45 Defender with Beam Rifle Last Messages --------------- defend their interests would be to start expanding in this direction." 02018_ Searching scrap... 02018_ Found Lgt. Assault Rifle. 02018_ Found Med. Battery. 02018_ Found 20 Matter. 02019_ Acquired 16 matter. 02043_ Dropped Assault Rifle. 02044_ Acquired 4 matter. 02051_ S-10 Pest destroyed. 02104_ R-06 Scavenger collects Flight Unit. 02106_ S-10 Pest destroyed. 02114_ K-01 Serf collects debris. 02121_ Dropped Ion Engine. 02123_ Acquired 20 matter. 02124_ Acquired 19 matter. 02129_ K-01 Serf collects debris. 02182_ Assault Rifle destroyed. 02183_ Lgt. Assault Rifle destroyed. 02191_ EM Pulse Gun destroyed. 02194_ Aluminum Leg destroyed. Map ----- +----------------------------------------------------+ | ?????????????????????????#%#### ## | | ?????????????????????????#*######?? | | ?????????????????????????#= #?? | | ?????????????????????????##### #?? | | ?????????????????###?????????# ### | | ???????????????### #????????# | | ??????????????## #???????# | | ?????????????## #??????## # | | ?????????????? #??????# # | | ???????????????# #?????# # | | ????????????????# ##???# ## | | ????????????????# ##?## ## | | ????????????????# ### # | | ??????????????????????# | | ??????????????????????## * | | ??????????????????????## [ = | | ??????????????????????# | | ?????????????????????## ### | | ????????????????????## ##?# | | ??????######???????## ###??? | | ?????##"!!"#???###?# ##????# | | ?????#""[!""??## ## #?????# | | ?????# ???# ## #?????# | | ??????#Y ???# ####### #?????# | | ?????###/Y###??# ##????# #?????? | | ?????# @ #???# ##??## ####??? | | ????## ###??# #??# #??? | | ????# #### #?## #??? | | ????# # ### ##??? | | ????# # ### ###???? | | ????# # ### """ ##?????? | | ????# """ #??????? | | ????# ##### """ ##??????? | | ????# #???# ##???????? | | ????# #???## ##????????? | | ????###########????# #?????????? | | ???????????????????## ##?????????? | | ????????????????????####??????????? | | ??????????????????????????????????? | | | | | | | | | | | | | | | | | | | | | | | +----------------------------------------------------+ Best States ------------- Heat Dissipation 25 Energy Generation 10 Energy Capacity 250 Matter Stores 300 Matter Capacity 300 Sight Range 16 Terrain Scan Density 10 Evasion (%) 40 Recoil Reduction 2 Item Schematics ----------------- None Robot Schematics ------------------ None Fabricated ------------ Nothing Alien Tech Used ----------------- None Achievements -------------- None Challenges ------------ None Game ------ Seed MobileMediumFemtoactuators Manual? 0 Play Time 00:22:50 Cumulative 118.1 hours Start 2021.05.11 @ 10:21:17 End 2021.05.11 @ 10:54:50 Sessions 1 Manual Loads 0 Difficulty Rogue Special Mode None Game No. 43 Rogue 43 Adventurer 0 Explorer 0 Win Type - Total 3 Types 2/0/0/1/0/0/0/0/0 Lore% 59 Gallery% 67 Achievement% 51 Wizard Run 0 Options --------- ASCII 1 Keyboard 1 Movement Vi Keybinds 0 Fullscreen 0 Font 20/CogTall Map View 76x50 Tactical HUD 1 Map Filters NONE Filters NONE Steam 1 RUN: 93d5c8ea-9852-4fd9-9062-2c853cfe127b